bitfinex/quotes_SOLUSD_20251024
["timestamp","ask_amount","ask_price","bid_price","bid_amount"]
[1761267267959,5.16448897,193.63,193.62,4.09616545]
[1761267268266,5.16448897,193.63,193.6,23.39652892]
[1761267268458,5.16410327,193.65,193.62,26.97616545]
[1761267268659,5.16366162,193.67,193.64,4.09616545]
[1761267269236,0.7,193.67,193.64,4.09616545]
[1761267270346,5.16368893,193.66,193.64,4.09616545]
[1761267272237,12.90802726,193.68,193.64,4.09616545]
[1761267272454,0.7,193.67,193.64,4.09616545]
[1761267274453,5.16368893,193.66,193.64,4.09616545]
[1761267274764,5.16368893,193.66,193.61,0.51650224]
[1761267274765,18.07291127,193.66,193.61,0.51650224]
[1761267274935,0.7,193.65,193.55,0.51666236]
[1761267275133,0.7,193.65,193.57,4.09616545]
[1761267275940,0.7,193.65,193.53,0.51671575]
[1761267275941,4.09616545,193.64,193.55,4.09616545]
[1761267276140,4.09616545,193.64,193.55,26.97616545]
[1761267276360,4.09616545,193.61,193.55,22.88]
[1761267276557,18.07851239,193.6,193.55,22.88]
[1761267276778,18.77851239,193.6,193.55,26.97616545]
[1761267276958,0.7,193.59,193.55,26.97616545]
[1761267277767,0.7,193.59,193.56,4.09616545]
[1761267278372,0.7,193.59,193.55,26.97616545]
[1761267279049,5.16582291,193.58,193.55,22.88]
[1761267279255,18.08038019,193.58,193.55,22.88]
[1761267279468,0.7,193.57,193.53,27.4928812]
[1761267279769,0.7,193.57,193.49,10.87647521]
[1761267279770,4.09616545,193.56,193.49,4.09616545]
[1761267280150,0.7,193.55,193.49,4.09616545]
[1761267280355,0.7,193.55,193.49,26.97616545]
[1761267280658,0.7,193.55,193.5,4.09616545]
[1761267280851,5.16689056,193.54,193.5,4.09616545]
[1761267281450,5.16671631,193.55,193.53,4.09616545]
[1761267282361,5.16671631,193.55,193.52,4.09616545]
[1761267282861,18.08131424,193.57,193.52,4.09616545]
[1761267283245,18.77131424,193.57,193.52,4.09616545]
[1761267283845,18.77131424,193.57,193.51,0.51676915]
[1761267284046,18.77131424,193.57,193.53,4.09616545]
[1761267284858,0.69,193.56,193.53,4.09616545]
[1761267286069,5.16662361,193.55,193.53,4.09616545]
[1761267286970,5.85662361,193.55,193.52,4.09616545]
[1761267287269,5.85662361,193.55,193.49,26.97616545]
[1761267287270,0.69,193.54,193.49,26.97616545]
[1761267287568,0.69,193.54,193.49,22.88]
[1761267287771,4.78616545,193.54,193.48,4.61301473]
[1761267287958,4.78616545,193.54,193.39,0.51708981]
[1761267287959,22.18215138,193.52,193.39,0.51708981]
[1761267288276,4.09616545,193.51,193.45,4.09616545]
[1761267288579,0.69,193.5,193.42,0.51700961]
[1761267288758,4.09616545,193.47,193.41,4.81320179]
[1761267289072,0.69,193.5,193.45,4.09616545]
[1761267289274,0.69,193.49,193.44,4.09616545]
[1761267289960,18.08972502,193.48,193.43,4.09616545]
[1761267290450,0.69,193.47,193.43,4.09616545]
[1761267290647,0.69,193.47,193.43,6.11547069]
[1761267291361,0.69,193.47,193.42,28.99547069]
[1761267291877,5.16902718,193.46,193.42,28.99547069]
[1761267292074,18.09159515,193.46,193.42,22.88]
[1761267292277,0.69,193.45,193.42,22.88]
[1761267292572,0.69,193.45,193.42,28.99547069]
[1761267293856,5.16956162,193.44,193.42,28.99547069]
[1761267294396,0.69,193.48,193.43,6.11547069]
[1761267294673,0.69,193.48,193.44,6.11547069]
[1761267294880,0.69,193.48,193.42,23.39700961]
[1761267295066,0.69,193.48,193.43,6.11547069]
[1761267295969,5.16876001,193.47,193.43,6.11547069]
[1761267296280,18.09066004,193.47,193.43,6.11547069]
[1761267296457,0.69,193.46,193.43,6.11547069]
[1761267297377,5.16929439,193.45,193.43,6.11547069]
[1761267298563,5.16902718,193.46,193.43,6.11547069]
[1761267298880,5.85902718,193.46,193.43,6.11547069]
[1761267299062,0.69,193.45,193.42,29.5124803]
[1761267299261,0.69,193.45,193.42,28.99547069]
[1761267299461,5.16956162,193.44,193.42,28.99547069]
[1761267299858,5.16956162,193.44,193.42,22.88]
[1761267300582,5.16956162,193.44,193.42,28.99547069]
[1761267300983,5.85956162,193.44,193.42,22.88]
[1761267301158,5.85956162,193.44,193.41,0.2]
[1761267301159,0.69,193.43,193.41,0.2]
[1761267301680,11.28556685,193.42,193.41,0.2]
[1761267302193,24.896593,193.47,193.41,6.31547069]
[1761267302365,6.11547069,193.51,193.45,6.11547069]
[1761267302559,6.11547069,193.51,193.41,0.71703634]
[1761267302560,6.11547069,193.52,193.46,6.11547069]
[1761267302756,6.80547069,193.52,193.46,6.11547069]
[1761267302980,0.69,193.51,193.46,6.11547069]
[1761267303597,18.08785529,193.5,193.45,6.11547069]
[1761267304090,6.80547069,193.53,193.47,22.88]
[1761267304303,6.11547069,193.51,193.41,0.2]
[1761267304497,6.11547069,193.44,193.41,0.2]
[1761267304800,0.69,193.44,193.41,23.08]
[1761267304978,6.11547069,193.47,193.41,29.19547069]
[1761267305607,6.11547069,193.45,193.41,0.2]
[1761267305803,6.11547069,193.43,193.41,0.2]
[1761267306292,0.69,193.42,193.41,0.2]
[1761267306993,5.86009616,193.42,193.41,0.2]
[1761267307504,0.69,193.47,193.41,6.31547069]
[1761267307699,6.80547069,193.5,193.43,6.11547069]
[1761267307885,0.69,193.5,193.46,6.11547069]
[1761267308077,18.08598593,193.52,193.49,6.11547069]
[1761267308385,18.08598593,193.52,193.46,38.34]
[1761267308386,0.69,193.51,193.46,6.11547069]
[1761267308576,18.08598593,193.52,193.47,6.11547069]
[1761267308774,18.08598593,193.52,193.46,38.34]
[1761267308775,18.08598593,193.52,193.48,6.11547069]
[1761267309077,12.91856138,193.52,193.48,6.11547069]
[1761267309314,13.60856138,193.52,193.48,6.11547069]
[1761267309500,12.91856138,193.52,193.48,6.11547069]
[1761267309678,12.91856138,193.52,193.49,6.11547069]
[1761267309879,12.91856138,193.52,193.48,6.11547069]
[1761267310592,18.77598593,193.52,193.48,6.11547069]
[1761267311193,0.7,193.51,193.46,44.45547069]
[1761267311395,6.81547069,193.51,193.45,6.11547069]
[1761267311807,6.81547069,193.5,193.44,44.41547069]
[1761267312406,0.7,193.49,193.44,44.41547069]
[1761267312993,5.16849286,193.48,193.44,44.39547069]
[1761267313706,6.11547069,193.45,193.41,0.2]
[1761267313909,6.11547069,193.43,193.41,0.2]
[1761267314096,18.08972502,193.48,193.41,0.2]
[1761267314097,6.11547069,193.42,193.41,0.2]
[1761267314484,6.81547069,193.42,193.41,0.2]
[1761267315104,11.98556685,193.42,193.41,1e-08]
[1761267315314,24.91080725,193.42,193.33,6.11547069]
[1761267315600,6.11547069,193.37,193.32,38.46]
[1761267315919,6.11547069,193.33,193.32,0.2]
[1761267316285,6.11547069,193.33,193.27,0.2]
[1761267316286,6.81547069,193.33,193.27,0.2]
[1761267316505,6.11547069,193.3,193.27,0.2]
[1761267316690,6.11547069,193.31,193.27,0.2]
[1761267316884,6.81547069,193.31,193.27,0.2]
[1761267317202,5.17357338,193.29,193.27,0.2]
[1761267317503,11.28904407,193.29,193.27,0.2]
[1761267317707,6.81547069,193.28,193.27,0.2]
[1761267318081,5.17357338,193.29,193.27,0.2]
[1761267318803,5.173265,193.31,193.27,6.31547069]
[1761267319110,5.17357338,193.29,193.27,0.2]
[1761267319606,0.7,193.33,193.27,0.2]
[1761267319806,6.11547069,193.29,193.27,0.2]
[1761267320101,6.11547069,193.28,193.27,0.2]
[1761267320305,0.7,193.32,193.27,0.2]
[1761267320504,6.11547069,193.28,193.27,0.2]
[1761267320882,6.11547069,193.29,193.27,0.2]
[1761267321312,5.17384105,193.28,193.27,0.2]
[1761267322010,5.17352763,193.3,193.27,0.2]
[1761267322312,0.7,193.29,193.27,0.2]
[1761267322681,18.10679198,193.3,193.27,0.2]
[1761267322885,5.17352763,193.3,193.27,0.2]
[1761267323104,6.11547069,193.28,193.23,0.51751798]
[1761267323305,6.11547069,193.24,193.21,0.2]
[1761267323514,6.11547069,193.26,193.21,0.2]
[1761267323706,18.10844369,193.28,193.21,0.2]
[1761267323707,6.11547069,193.25,193.21,0.2]
[1761267324602,6.81547069,193.25,193.21,0.2]
[1761267324988,0.7,193.25,193.21,0.2]
[1761267325187,5.17464424,193.25,193.21,0.2]
[1761267325815,11.29011493,193.25,193.21,0.2]
[1761267326594,6.11547069,193.24,193.21,0.2]
[1761267326794,6.11547069,193.22,193.21,0.2]
[1761267327408,11.98091836,193.22,193.21,0.2]
[1761267327604,5.86544767,193.22,193.21,0.2]
[1761267327820,11.98091836,193.22,193.21,0.2]
[1761267328918,5.86544767,193.22,193.21,0.2]
[1761267329120,11.98091836,193.22,193.21,0.2]
[1761267329507,5.17544767,193.22,193.21,0.2]
[1761267330792,11.98091836,193.22,193.21,0.2]
[1761267331406,5.86544767,193.22,193.21,0.2]
[1761267331613,11.98091836,193.22,193.21,0.2]
[1761267332121,5.17515389,193.24,193.21,23.08]
[1761267332516,5.17515389,193.24,193.21,0.2]
[1761267332699,6.11547069,193.23,193.21,0.2]
[1761267332906,6.80547069,193.23,193.21,0.2]
[1761267333115,5.17515389,193.24,193.21,0.2]
[1761267333300,5.17515389,193.24,193.21,6.31547069]
[1761267333928,24.22578838,193.26,193.21,6.31547069]
[1761267334424,24.22578838,193.26,193.22,6.11547069]
[1761267334425,18.11031769,193.26,193.22,6.11547069]
[1761267334729,18.80031769,193.26,193.22,6.11547069]
[1761267337003,5.17437648,193.26,193.22,6.11547069]
[1761267337826,5.17437648,193.26,193.21,0.2]
[1761267337827,0.69,193.25,193.21,0.2]
[1761267338121,6.11547069,193.24,193.21,0.2]
[1761267338501,6.80547069,193.24,193.21,0.2]
[1761267338710,6.11547069,193.24,193.21,0.2]
[1761267338910,6.80547069,193.23,193.21,0.2]
[1761267339428,5.17544767,193.22,193.21,0.2]
[1761267339626,11.98091836,193.22,193.21,0.2]
[1761267340417,11.98091836,193.22,193.15,0.2]
[1761267340418,50.79677593,193.22,193.15,0.2]
[1761267340602,6.11547069,193.16,193.15,0.2]
[1761267340803,6.11547069,193.17,193.15,0.2]
[1761267341011,6.11547069,193.17,193.15,23.08]
[1761267341215,0.72,193.16,193.15,0.2]
[1761267341525,5.89705529,193.16,193.15,0.2]
[1761267341742,12.01252598,193.16,193.15,0.2]
[1761267345525,5.17705529,193.16,193.15,0.2]
[1761267347106,24.23352445,193.18,193.15,0.2]
[1761267347302,0.72,193.17,193.15,0.2]
[1761267347927,6.83547069,193.17,193.15,0.2]
[1761267348132,6.11547069,193.16,193.15,0.2]
[1761267348329,6.83547069,193.16,193.15,0.2]
[1761267348719,0.72,193.16,193.15,0.2]
[1761267348908,6.83547069,193.16,193.15,0.2]
[1761267349107,12.01252598,193.16,193.15,0.2]
[1761267349836,5.89705529,193.16,193.15,0.2]
[1761267350045,12.01252598,193.16,193.15,0.2]
[1761267350537,5.17705529,193.16,193.15,0.2]
[1761267350831,5.89705529,193.16,193.15,0.2]
[1761267351050,12.01252598,193.16,193.15,0.2]
[1761267352426,12.01252598,193.16,193.11,22.88]
[1761267352427,24.9551642,193.16,193.11,22.88]
[1761267352628,0.72,193.15,193.11,22.88]
[1761267352831,4.12071179,193.13,193.11,22.88]
[1761267353221,4.84071179,193.13,193.11,22.88]
[1761267353538,4.84071179,193.12,193.05,4.12071179]
[1761267353838,4.12071179,193.1,193.05,4.12071179]
[1761267354135,4.12071179,193.1,193.04,42.10071179]
[1761267354345,5.1789321,193.09,193.04,42.10071179]
[1761267354534,10.01964389,193.09,193.04,37.98]
[1761267354840,18.84626236,193.09,193.07,22.88]
[1761267355214,5.1789321,193.09,193.07,23.08]
[1761267355420,5.1789321,193.09,193.07,22.88]
[1761267356340,5.17839573,193.11,193.07,22.88]
[1761267356539,5.17839573,193.11,193.09,4.12071179]
[1761267356850,18.12438506,193.11,193.07,4.12071179]
[1761267357037,18.84438506,193.11,193.05,22.88]
[1761267357236,22.96509685,193.11,193.04,37.92]
[1761267357441,4.84071179,193.1,193.07,22.88]
[1761267357623,4.12071179,193.08,193.02,37.94]
[1761267357825,4.12071179,193.07,193.05,22.88]
[1761267358149,4.12071179,193.08,193.05,22.88]
[1761267358326,5.17946858,193.07,193.05,22.88]
[1761267359119,5.17946858,193.07,193.05,27.00071179]
[1761267360238,18.12626236,193.09,193.05,27.00071179]
[1761267361134,12.94733026,193.09,193.05,27.00071179]
[1761267363431,5.1786639,193.1,193.07,4.12071179]
[1761267363741,5.1786639,193.1,193.08,4.12071179]
[1761267363954,5.1786639,193.1,193.09,4.12071179]
[1761267364350,12.94364814,193.15,193.1,22.88]
[1761267364539,12.94364814,193.15,193.12,4.12071179]
[1761267364726,12.94364814,193.15,193.11,4.12071179]
[1761267364930,13.66364814,193.15,193.11,4.12071179]
[1761267365339,13.66364814,193.15,193.08,0.2]
[1761267365340,4.84071179,193.14,193.08,0.51792003]
[1761267365675,4.12071179,193.09,193.04,4.12071179]
[1761267365873,18.12097146,193.15,193.04,4.12071179]
[1761267365874,4.12071179,193.1,193.04,4.12071179]
[1761267366166,4.12071179,193.11,193.05,27.00071179]
[1761267366463,0.72,193.14,193.02,20.34]
[1761267366464,4.12071179,193.1,193.04,4.12071179]
[1761267366666,4.12071179,193.1,193.05,22.88]
[1761267366875,0.72,193.09,193.05,22.88]
[1761267367234,4.84071179,193.09,193.05,22.88]
[1761267367549,18.12720115,193.08,193.05,22.88]
[1761267367738,18.84720115,193.08,193.05,22.88]
[1761267367939,0.72,193.07,193.05,22.88]
[1761267370160,5.17973686,193.06,193.05,22.88]
[1761267371273,0.72,193.07,193.05,22.88]
[1761267371274,5.17946858,193.07,193.05,22.88]
[1761267371472,5.17946858,193.07,193.05,27.00071179]
[1761267371674,5.17946858,193.07,193.05,22.88]
[1761267371842,5.17946858,193.07,193.05,27.00071179]
[1761267372042,12.94759463,193.09,193.06,4.12071179]
[1761267372043,5.1791114,193.09,193.06,4.12071179]
[1761267372467,5.1791114,193.09,193.05,22.88]
[1761267372468,5.1791114,193.09,193.05,27.00071179]
[1761267372654,5.1791114,193.09,193.06,4.12071179]
[1761267372856,5.1791114,193.09,193.05,27.00071179]
[1761267373367,5.1786639,193.1,193.05,27.00071179]
[1761267374549,5.8486639,193.1,193.05,27.00071179]
[1761267374750,5.17920033,193.08,193.05,27.00071179]
[1761267376774,5.17920033,193.08,193.06,4.12071179]
[1761267376974,5.17920033,193.08,193.05,27.00071179]
[1761267377146,0.67,193.1,193.07,4.12071179]
[1761267377147,5.84891516,193.1,193.07,4.12071179]
[1761267378264,5.84891516,193.1,193.06,27.00071179]
[1761267378470,4.12071179,193.08,193.05,22.88]
[1761267378656,5.17946858,193.07,193.05,22.88]
[1761267378865,5.84946858,193.07,193.05,22.88]
[1761267380270,5.17946858,193.07,193.05,22.88]
[1761267381165,5.17946858,193.07,193.05,27.00071179]
[1761267381879,5.17946858,193.07,193.05,22.88]
[1761267382058,5.84946858,193.07,193.05,22.88]
[1761267383383,0.67,193.06,193.04,37.58]
[1761267383577,0.67,193.06,193.03,27.00071179]
[1761267383768,0.67,193.06,193.03,60.46]
[1761267384171,5.18000518,193.05,193.01,37.76]
[1761267384483,5.18000518,193.05,193.01,41.88071179]
[1761267384661,5.85000518,193.05,193.04,22.88]
[1761267384856,12.9471726,193.1,193.04,24.52930837]
[1761267385071,12.9471726,193.1,193.05,1.64930837]
[1761267385253,5.1789321,193.09,193.05,39.20930837]
[1761267385456,5.8489321,193.09,193.05,39.20930837]
[1761267386583,0.67,193.08,193.05,39.20930837]
[1761267387080,0.67,193.08,193.05,37.56]
[1761267387455,5.17946858,193.07,193.05,37.56]
[1761267388483,5.85946858,193.07,193.05,37.56]
[1761267388984,0.68,193.08,193.05,37.56]
[1761267389188,0.68,193.07,193.05,37.56]
[1761267390081,5.17973686,193.06,193.05,37.56]
[1761267390283,5.17973686,193.06,193.04,37.5]
[1761267391268,0.68,193.05,193.04,37.5]
[1761267392172,5.17946858,193.07,193.04,37.5]
[1761267392369,5.85946858,193.07,193.04,37.5]
[1761267392893,5.17946858,193.07,193.04,39.14930837]
[1761267394190,5.85946858,193.07,193.04,39.14930837]
[1761267394379,5.17946858,193.07,193.04,39.14930837]
[1761267394988,5.17946858,193.07,193.04,37.5]
[1761267395185,5.85946858,193.07,193.04,37.5]
[1761267397684,5.17946858,193.07,193.06,24.52930837]
[1761267400982,5.1789321,193.09,193.07,22.88]
[1761267401185,5.1789321,193.09,193.08,37.36]
[1761267401385,5.8989321,193.09,193.08,37.36]
[1761267402198,5.8989321,193.09,193.06,37.34]
[1761267402392,5.1789321,193.09,193.06,37.32]
[1761267402597,5.1789321,193.09,193.08,1.64930837]
[1761267402783,18.84626236,193.09,193.08,37.32]
[1761267403294,22.72394966,193.09,193.01,0.71810787]
[1761267403499,4.5976873,193.08,193.04,1.64930837]
[1761267403687,3.8776873,193.07,193.05,37.34]
[1761267403892,0.72,193.08,193.05,37.34]
[1761267404090,3.87823444,193.07,193.01,0.2]
[1761267404287,3.87814753,193.06,193.03,1.64930837]
[1761267404497,3.87840744,193.05,193.01,37.54]
[1761267404682,0.72,193.08,193.03,1.64930837]
[1761267404884,3.87847223,193.07,193.03,1.64930837]
[1761267405083,9.05835955,193.06,193.04,37.34]
[1761267405296,5.17988732,193.06,193.04,37.34]
[1761267406006,5.89988732,193.06,193.04,37.34]
[1761267407798,4.59742366,193.05,193.03,37.3]
[1761267408006,0.72,193.05,193.03,37.3]
[1761267408307,4.59771901,193.04,193.03,37.3]
[1761267409096,0.72,193.04,193.03,37.3]
[1761267409296,14.59717066,193.09,193.03,39.14930837]
[1761267409495,3.8769326,193.08,193.03,38.94930837]
[1761267409707,3.8769326,193.07,193.03,38.94930837]
[1761267409912,3.8769326,193.06,193.03,38.94930837]
[1761267410087,3.8769326,193.05,193.04,1.64930837]
[1761267410782,12.94786229,193.09,193.04,1.84930837]
[1761267410783,5.17918697,193.09,193.04,1.84930837]
[1761267411011,3.87687795,193.08,193.07,1.64930837]
[1761267411210,3.87687795,193.08,193.07,38.94930837]
[1761267412003,3.87687795,193.08,193.07,37.3]
[1761267413406,5.89872403,193.1,193.07,60.18]
[1761267413586,4.59638077,193.09,193.07,60.18]
[1761267413786,0.72,193.09,193.07,60.18]
[1761267414300,0.72,193.09,193.07,22.88]
[1761267414608,0.72,193.09,193.08,37.3]
[1761267414792,4.59664117,193.09,193.08,37.3]
[1761267417085,9.77563147,193.09,193.05,2.57599335]
[1761267417300,2.57599335,193.07,193.01,0.2]
[1761267417504,2.57599335,193.04,193.01,37.5]
[1761267417697,3.87664117,193.03,193.01,0.2]
[1761267417896,3.87664117,193.02,193.01,0.2]
[1761267418093,4.59664117,193.02,193.01,0.2]
[1761267419312,0.72,193.02,193.01,0.2]
[1761267419609,4.59564575,193.02,193.01,0.2]
[1761267419982,9.77645602,193.02,193.01,0.2]
[1761267420808,5.9000058,193.05,193.01,2.77599335]
[1761267420998,5.1800058,193.05,193.02,37.3]
[1761267421195,4.59535502,193.04,193.02,37.3]
[1761267421399,0.72,193.04,193.02,37.3]
[1761267421941,5.90033055,193.04,193.02,37.3]
[1761267422995,3.87477252,193.03,193.02,37.3]
[1761267423788,0.72,193.08,193.02,45.25676809]
[1761267423992,2.57599335,193.11,193.06,2.57599335]
[1761267424296,4.59358253,193.1,193.06,39.87599335]
[1761267424498,3.87358253,193.09,193.06,39.87599335]
[1761267424707,3.87358253,193.08,193.06,39.87599335]
[1761267424896,0.72,193.1,193.06,39.87599335]
[1761267425103,3.87359768,193.09,193.06,37.3]
[1761267425301,6.44959103,193.08,193.07,37.3]
[1761267425611,11.62879136,193.08,193.05,37.3]
[1761267425819,7.16959103,193.07,193.05,37.3]
[1761267426023,3.87383624,193.06,193.05,37.3]
[1761267426232,0.72,193.06,193.05,37.3]
[1761267426628,0.72,193.06,193.04,37.3]
[1761267426803,0.72,193.06,193.03,22.88]
[1761267426999,0.72,193.06,193.04,37.3]
[1761267427203,0.72,193.06,193.04,60.18]
[1761267429015,0.72,193.09,193.04,62.75599335]
[1761267429215,3.8739485,193.08,193.04,62.75599335]
[1761267429433,3.8739485,193.07,193.04,37.3]
[1761267429597,3.8739485,193.06,193.04,37.3]
[1761267429797,2.57599335,193.08,193.04,37.3]
[1761267430005,2.57599335,193.05,193.01,0.2]
[1761267430203,6.45007702,193.04,193.01,37.5]
[1761267430522,3.87408367,193.03,193.01,0.2]
[1761267430739,0.72,193.06,193.01,0.2]
[1761267430740,6.45007702,193.02,193.01,0.2]
[1761267431030,11.63088729,193.02,193.01,0.2]
[1761267431231,12.29088729,193.02,193.01,0.2]
[1761267431622,3.87408367,193.02,193.01,0.2]
[1761267431948,5.84048877,193.04,193.01,0.2]
[1761267432103,4.53323426,193.03,193.01,0.2]
[1761267432299,0.66,193.03,193.01,0.2]
[1761267432496,4.53326475,193.02,193.01,0.2]
[1761267433335,0.66,193.02,193.01,0.2]
[1761267434640,2.57599335,193.05,193.01,0.2]
[1761267434641,7.7562582,193.05,193.01,0.2]
[1761267434818,4.53198965,193.04,193.01,0.2]
[1761267435013,0.66,193.04,193.01,0.2]
[1761267435209,7.7562582,193.05,193.01,0.2]
[1761267435210,0.66,193.03,193.01,0.2]
[1761267436236,5.84054869,193.03,193.01,0.2]
[1761267436636,0.66,193.03,193.01,0.2]
[1761267436845,3.87123395,193.04,193.01,2.77599335]
[1761267437142,5.83980808,193.06,193.02,2.57599335]
[1761267437333,5.83980808,193.06,193.01,2.77599335]
[1761267437334,3.87107654,193.05,193.01,2.77599335]
[1761267437535,3.87107654,193.04,193.01,2.77599335]
[1761267437735,0.66,193.04,193.01,2.77599335]
[1761267438120,0.66,193.04,193.01,0.2]
[1761267440340,5.84030608,193.04,193.01,0.2]
[1761267440527,0.66,193.03,193.01,0.2]
[1761267440946,5.18030608,193.04,193.01,0.2]
[1761267441159,5.84030608,193.04,193.01,0.2]
[1761267442262,5.18000518,193.05,193.01,0.2]
[1761267442459,0.66,193.03,193.01,0.2]
[1761267443362,4.53100325,193.03,193.01,0.2]
[1761267443673,2.57599335,193.02,193.01,0.2]
[1761267443871,3.23599335,193.02,193.01,0.2]
[1761267444167,7.10701415,193.02,193.01,0.2]
[1761267444372,12.28782442,193.02,193.01,0.2]
[1761267445876,9.71183107,193.02,193.01,0.2]
[1761267446077,12.28782442,193.02,193.01,0.2]
[1761267449260,3.8710208,193.02,193.01,0.2]
[1761267449464,3.23599335,193.06,193.01,0.2]
[1761267449667,3.8705662,193.05,193.01,0.2]
[1761267449854,3.8705662,193.04,193.01,0.2]
[1761267450053,3.8705662,193.03,193.01,0.2]
[1761267450253,0.66,193.03,193.01,0.2]
[1761267451075,5.84061719,193.03,193.01,0.2]
[1761267451474,0.66,193.03,193.01,0.2]
[1761267451667,5.18029746,193.04,193.01,0.2]
[1761267451991,5.84029746,193.04,193.01,0.2]
[1761267452364,5.83999043,193.06,193.01,2.77599335]
[1761267452678,4.53059149,193.05,193.01,2.77599335]
[1761267452974,3.87059149,193.04,193.01,0.2]
[1761267453173,0.66,193.04,193.01,0.2]
[1761267453382,0.66,193.04,193.01,2.77599335]
[1761267453583,0.66,193.04,193.01,0.2]
[1761267454160,4.53028473,193.04,193.01,0.2]
[1761267454360,0.66,193.04,193.01,0.2]
[1761267455672,8.41630725,193.04,193.01,0.2]
[1761267456175,0.66,193.03,193.01,23.08]
[1761267460888,3.87409086,193.02,193.01,23.08]
[1761267461783,0.66,193.03,193.01,23.08]
[1761267462087,3.87639853,193.02,193.01,23.08]
[1761267462386,7.75548781,193.07,193.01,25.65599335]
[1761267462696,7.11239158,193.06,193.01,29.53239188]
[1761267462884,3.87639823,193.05,193.01,29.53239188]
[1761267463086,3.87639823,193.04,193.01,29.53239188]
[1761267463279,3.87639823,193.03,193.01,29.53239188]
[1761267463584,0.66,193.05,193.01,29.53239188]
[1761267463786,3.87644807,193.04,193.01,29.53239188]
[1761267463975,3.87644807,193.03,193.01,26.95639853]
[1761267464176,0.66,193.05,193.01,26.95639853]
[1761267464380,3.87635384,193.04,193.01,26.95639853]
[1761267464573,3.87635384,193.03,193.01,26.95639853]
[1761267464885,0.66,193.05,193.01,26.95639853]
[1761267465088,3.87648005,193.04,193.01,29.53239188]
[1761267465275,3.87648005,193.03,193.01,26.95639853]
[1761267465476,3.23599335,193.05,193.01,26.95639853]
[1761267465681,4.53660134,193.04,193.01,26.95639853]
[1761267465879,3.87660134,193.03,193.01,26.95639853]
[1761267466076,0.66,193.04,193.01,26.95639853]
[1761267466278,3.87660106,193.03,193.01,26.95639853]
[1761267466478,0.66,193.05,193.01,26.95639853]
[1761267466678,3.87655797,193.04,193.01,26.95639853]
[1761267466896,3.87655797,193.03,193.01,26.95639853]
[1761267467194,0.66,193.05,193.01,26.95639853]
[1761267467490,3.87655742,193.04,193.01,26.95639853]
[1761267467704,3.87655742,193.03,193.01,26.95639853]
[1761267467872,2.57599335,193.04,193.01,4.07639853]
[1761267468190,3.87656734,193.03,193.01,0.2]
[1761267468387,3.87656734,193.02,193.01,0.2]
[1761267468780,8.41602468,193.05,193.01,0.2]
[1761267468977,7.11268319,193.04,193.01,0.2]
[1761267469181,3.87668984,193.03,193.01,0.2]
[1761267469387,3.87668984,193.02,193.01,0.2]
[1761267470893,4.53668984,193.02,193.01,0.2]
[1761267471093,3.87668984,193.02,193.01,0.2]
[1761267473091,23.16996867,193.02,193.01,0.2]
[1761267473602,23.1741752,193.02,193.01,0.2]
[1761267473804,23.1741752,193.02,192.96,22.88]
[1761267473805,2.57599335,192.99,192.96,22.88]
[1761267473980,3.88089637,192.98,192.96,22.88]
[1761267474179,0.66,192.98,192.96,22.88]
[1761267474379,0.66,192.97,192.96,22.88]
[1761267475390,3.23599335,193.0,192.96,22.88]
[1761267475599,4.54016071,192.99,192.96,22.88]
[1761267475800,4.54016071,192.99,192.95,0.2]
[1761267475801,3.88016071,192.98,192.95,0.2]
[1761267476003,0.66,192.98,192.96,22.88]
[1761267476196,0.66,192.97,192.96,22.88]
[1761267479390,5.18162248,192.99,192.96,22.88]
[1761267479595,0.66,192.97,192.96,22.88]
[1761267481308,4.53824446,192.97,192.96,22.88]
[1761267481701,11.37106606,192.97,192.95,0.2]
[1761267481885,6.18884918,192.96,192.95,0.2]
[1761267482398,4.53824446,192.96,192.95,0.2]